Cogmind - Beta 9.1 @@@ ROGUE MODE // 2019.11.02 @ 18:43:51 Player: Trione Result: Destroyed by H-66 Slayer with Gauss Rifle Performance ------------- Evolutions (5) 2500 Regions Visited (27) 5400 Robots Destroyed (582) 2910 Value Destroyed (26179) 26179 Prototype IDs (53) 1060 Alien Tech Used (0) 0 Bonus (13058) 13058 TOTAL SCORE: 51107 Bonus ------- High Alert Combat Kills 5602 Follower Combat Kills 2637 Entered Garrisons 1200 Used RIF Installer 3000 Network Hubs Disabled 400 Aligned with FarCom 300 Built Enhanced Grunts 300 A7 Reached Mainframe 300 Met R17 at Cetus 500 Friendly Fire -1181 Cogmind --------- Core Integrity 0/1000 Matter 281/300 Energy 67/170 System Corruption 9% Temperature Cool (5) Location -5/Factory Parts ------- Power (1) Micro Fission Core Propulsion (2) Centrium Heavy Treads Utility (11) Medium Storage Unit Medium Storage Unit Medium Storage Unit Large Storage Unit Large Storage Unit High-capacity Storage Unit Advanced Signal Interpreter Improved Medium Armor Plating Improved Thermal Shield Relay Coupler [Sentry] (23) System Restoration Module Weapon (3) EMDS Lance Inventory (36) Light Fission Core Centrium Heavy Treads Armored Wheel Advanced Heat Sink High-capacity Storage Unit Improved Energy Well (600) Improved Weapon Cycler Improved Weapon Cycler Improved Medium Armor Plating Focal Shield Relay Coupler [NC] (45) Relay Coupler [NC] (51) Relay Coupler [NC] (49) Relay Coupler [Sentry] (32) Relay Coupler [Sentry] (35) Supersonic Drone Bay (1/1) AWS/Thermal Advanced Plasma Cannon Gauss Rifle KE Penetrator Hardcell Cannon Hardcell Cannon Hardcell Cannon Hardcell Cannon Hardcell Cannon Hypervelocity Mass Driver Hypervelocity Mass Driver Hypervelocity Mass Driver Heavy Proton Missile Launcher Smartbomb Launcher Improved Remote Datajack Peak State ------------ Power Quantum Reactor Propulsion Centrium Heavy Treads Utility Advanced Heat Sink High-capacity Storage Unit High-capacity Storage Unit High-capacity Storage Unit High-capacity Storage Unit Advanced Signal Interpreter Improved Weapon Cycler Improved Weapon Shielding Centrium Medium Armor Plating Centrium Medium Armor Plating EM Dispersion Field Weapon EMDS Phasing Sabre Inventory Quantum Reactor High-capacity Storage Unit Superbattery Matter Compressor Advanced Sensor Array Experimental Targeting Computer Particle Charger Improved Weapon Cycler Medium Reactive Plating Experimental Thermal Shield EM Dispersion Field Relay Coupler [NC] Relay Coupler [NC] Relay Coupler [NC] Relay Coupler [Sentry] Relay Coupler [Behemoth] System Backup Module System Backup Module Supersonic Drone Bay Arc Projector Advanced Variable Charge Gun AWS/Thermal EMDS Plasma Cannon Heavy Plasma Cannon Gauss Rifle Heavy Machine Gun Improved KE Penetrator Improved KE Penetrator Proton Missile Launcher Missile Launcher Improved Remote Datajack Spear [Rating: 120] Favorites ----------- Power Improved Ion Engine Engine Improved Ion Engine Power Core Micro Fission Core Reactor Quantum Reactor Propulsion Light Treads Treads Light Treads Wheel Armored Wheel Utility High-capacity Storage Unit Device Improved Weapon Cycler Storage High-capacity Storage Unit Processor Advanced Signal Interpreter Hackware Relay Coupler [NC] Protection Centrium Medium Armor Plating Weapon Advanced Beam Cannon Energy Gun Improved EM Shotgun Energy Cannon Advanced Beam Cannon Ballistic Gun Coil Gun Ballistic Cannon Flak Cannon Launcher Rocket Launcher Special Weapon Remote Datajack Slashing Weapon Phasing Sabre Piercing Weapon Lance Special Melee Weapon Improved Datajack Build | -11 -10 -10 -9 -9 -9 -8 -8 -8 -8 -8 -7 -7 -7 -7 -6 -6 -6 -6 -6 -6 -6 -6 -5 -5 -5 -5 -5 ------- Run | Scr Mat Min Mat Min Exi Min Mat Gar Mat Gar Fac Gar Fac Gar Fac Was Fac Ext Cet Arc Hub Gar Fac Was Fac Gar Fac Slots Evolved 10 | . . . 2 . . . 2 . . . 2 . . . 2 . . . . . . . 2 . . . . Power . | . . . . . . . . . . . . . . . . . . . . . . . . . . . . Propulsion . | . . . . . . . . . . . . . . . . . . . . . . . . . . . . Utility 9 | . . . 1 . . . 2 . . . 2 . . . 2 . . . . . . . 2 . . . . Weapon 1 | . . . 1 . . . . . . . . . . . . . . . . . . . . . . . . Parts Attached 700 | 7 6 4 34 8 9 3 13 39 55 11 13 19 81 33 11 18 7 20 23 11 73 18 82 15 48 27 12 Power 27 | 1 1 . 3 . 1 . . 4 1 . . 1 3 1 . . . 1 1 . 3 . 4 1 1 . . Engine 15 | 1 1 . 3 . 1 . . 4 1 . . . 1 1 . . . . . . . . 2 . . . . Core 6 | . . . . . . . . . . . . 1 2 . . . . 1 . . . . 1 . 1 . . Reactor 6 | . . . . . . . . . . . . . . . . . . . 1 . 3 . 1 1 . . . Propulsion 58 | 2 4 1 6 . . . 1 3 6 . . . 11 8 . . . . 5 1 3 1 3 2 1 . . Treads 44 | . 4 1 6 . . . 1 3 6 . . . 11 4 . . . . 2 1 1 1 1 1 1 . . Leg . | . . . . . . . . . . . . . . . . . . . . . . . . . . . . Wheel 14 | 2 . . . . . . . . . . . . . 4 . . . . 3 . 2 . 2 1 . . . Hover . | . . . . . . . . . . . . . . . . . . . . . . . . . . . . Flight . | . . . . . . . . . . . . . . . . . . . . . . . . . . . . Utility 229 | 2 . . 8 . 6 . 6 16 7 1 8 3 19 8 8 4 5 4 4 5 26 7 37 8 20 11 6 Device 105 | . . . 5 . 1 . 5 6 2 . 2 1 9 3 2 1 3 2 1 3 13 6 22 3 6 7 2 Storage 43 | 2 . . 3 . 5 . . 6 3 . 4 . 1 1 . . 1 . 1 . 3 . 5 . 5 2 1 Processor 8 | . . . . . . . . . . . 1 . 1 . . 1 . . . . . . 1 1 2 1 . Hackware 11 | . . . . . . . . 1 1 1 . . 1 . . 1 . . . 1 1 . 2 . . . 2 Protection 62 | . . . . . . . 1 3 1 . 1 2 7 4 6 1 1 2 2 1 9 1 7 4 7 1 1 Artifact . | . . . . . . . . . . . . . . . . . . . . . . . . . . . . Weapon 386 | 2 1 3 17 8 2 3 6 16 41 10 5 15 48 16 3 14 2 15 13 5 41 10 38 4 26 16 6 Energy Gun 72 | 1 . 2 4 1 2 1 2 6 4 2 1 5 14 4 . 2 . 2 3 1 4 2 2 1 4 2 . Energy Cannon 78 | . . . 9 4 . 2 3 5 9 2 1 3 3 1 . 5 1 3 1 . 6 2 9 1 5 2 1 Ballistic Gun 90 | 1 1 . 3 . . . . . 2 . 1 2 17 4 2 2 . 6 3 3 16 3 10 2 9 3 . Ballistic Cannon 24 | . . . . . . . . . 11 3 . 2 . . . 1 . 1 . . . . . . 1 4 1 Launcher 60 | . . 1 1 3 . . 1 5 13 3 . 1 . 5 . 1 1 1 5 . 7 2 4 . 3 2 1 Special Weapon 23 | . . . . . . . . . . . . . 4 1 1 2 . 2 1 1 3 . 4 . 1 1 2 Impact Weapon . | . . . . . . . . . . . . . . . . . . . . . . . . . . . . Slashing Weapon 20 | . . . . . . . . . . . 2 2 6 . . 1 . . . . 5 1 3 . . . . Piercing Weapon 16 | . . . . . . . . . . . . . 3 1 . . . . . . . . 6 . 3 2 1 Special Melee Weapon 3 | . . . . . . . . . 2 . . . 1 . . . . . . . . . . . . . . Unidentified Prototypes 16 | . . . 3 . . . 1 . 1 . . . . . . 1 . . 3 1 1 . 4 . 1 . . Parts Lost 86 | . 2 4 4 3 . . 2 3 6 1 . 5 8 8 . . . 1 1 . 8 1 10 7 5 4 3 Power 13 | . 1 . . 1 . . 1 . 1 . . 1 2 1 . . . . . . 1 . 3 . 1 . . Propulsion 10 | . . 1 2 . . . . 1 1 . . . . 2 . . . . 1 . . 1 . 1 . . . Utility 22 | . . . . . . . . . 1 . . 1 1 . . . . 1 . . 3 . 2 4 4 2 3 Weapon 41 | . 1 3 2 2 . . 1 2 3 1 . 3 5 5 . . . . . . 4 . 5 2 . 2 . Highest Loss Streak 7 | . 1 4 3 2 . . 1 2 3 1 . 4 3 7 . . . 1 1 . 5 1 6 7 3 2 2 Average Slot Usage (%) 93 | . 97 98 98 90 62 98 92 97 99 100 100 96 98 97 99 99 100 99 92 91 88 88 91 73 86 85 93 Engine 4 | . 11 14 11 2 3 11 5 8 8 9 7 3 . 6 6 6 6 5 . . . . . . . . . Reactor 1 | . . . . . . . . . . . . . . . . . . . . 6 5 6 2 3 4 . . Treads 11 | . 22 27 21 22 22 22 14 17 17 18 15 15 15 14 . . . . . 5 5 6 4 4 4 5 5 Wheel 1 | . 5 . . . . . . . . . . . . . 13 13 13 13 12 . . . 1 1 . . . Device 8 | . . . 9 11 2 . 8 11 9 7 7 6 4 3 6 5 5 3 . 9 6 19 13 9 6 12 6 Storage 29 | . 28 28 22 22 30 33 27 31 34 36 30 30 30 31 33 33 33 33 33 33 32 26 27 8 17 27 35 Processor 5 | . . . . . . . . . . . 7 7 6 7 6 12 13 13 13 13 6 . 5 10 17 11 10 Hackware 1 | . . . . . . . . . . 1 . . 5 1 . 5 6 4 . . 1 . 4 5 4 . 3 Protection 5 | . . . . . . . 8 2 . . 7 7 4 8 12 1 . 4 5 1 7 13 10 11 10 6 5 Energy Gun 5 | . 5 13 5 8 3 10 9 12 4 7 5 10 8 . . 5 6 1 6 4 1 4 . 4 1 1 . Energy Cannon 6 | . . . 21 23 1 21 17 9 6 15 11 3 . 1 . 5 6 4 . . 2 3 1 . 2 . . Ballistic Gun 4 | . 22 1 2 . . . . . . . . 4 9 12 7 1 . 6 3 9 12 2 4 5 3 3 5 Ballistic Cannon 1 | . . . . . . . . . 13 3 . . . . . . . . . . . . . . . 3 4 Naked Turns . | . . . . . . . . . . . . . . . . . . . . . . . . . . . . Heaviest Build 267 | 13 13 15 54 52 63 67 76 84 92 90 154 157 157 171 178 178 176 185 193 197 267 192 219 207 152 120 130 Greatest Support 80 | 26 40 40 43 43 43 43 43 43 43 40 40 40 42 60 24 24 24 24 24 80 80 80 80 80 80 80 80 Greatest Overweight (x) 12 | 1 . . 1 1 1 1 3 3 4 2 3 3 6 6 7 7 7 7 8 8 11 2 6 12 1 1 1 Average Overweight (x) 2 | . . . . 1 . 1 1 1 1 2 2 3 3 3 7 6 6 6 7 2 2 2 2 2 1 1 1 Largest Inventory Capacity 52 | 8 8 8 16 16 22 22 22 22 28 28 36 36 36 42 42 42 42 42 42 42 50 36 52 44 26 36 36 Average Capacity 29 | 5 8 8 12 16 20 22 22 22 26 28 32 36 36 36 42 42 42 42 42 42 41 36 41 17 20 28 36 Most Carried 47 | 8 8 8 16 16 22 22 22 22 28 28 33 36 36 42 42 42 42 42 42 42 47 36 46 44 23 36 36 Average Carried 29 | 4 7 7 11 13 18 21 21 21 26 27 29 34 35 36 41 41 41 41 41 41 40 34 40 16 18 24 35 Final Capacity 44 | . . . . . . . . 22 . 28 36 36 36 42 42 42 42 42 42 42 36 36 44 12 26 36 36 Final Carried 44 | . . . . . . . . 22 . 28 33 36 36 42 42 42 42 42 42 42 36 36 44 11 20 36 34 Class Distribution -------------------- 49% | Hauler-Mutant 10% | Bothacker-Mutant 9% | Scavenger-Mutant 7% | Hauler-Skirmisher 5% | Mutant 4% | Gunner 3% | Hauler-Gunner Dominant Class ---------------- Mutant | -10/Materials Mutant | -10/Mines Gunner | -9/Materials Gunner | -9/Mines Hauler-Mutant | -9/Exiles Hauler-Mutant | -8/Mines Hauler-Mutant | -8/Materials Hauler-Mutant | -8/Garrison Hauler-Skirmisher | -8/Materials Hauler-Mutant | -8/Garrison Hauler-Mutant | -7/Factory Hauler-Mutant | -7/Garrison Hauler-Mutant | -7/Factory Hauler-Mutant | -7/Garrison Hauler-Mutant | -6/Factory Hauler-Mutant | -6/Waste Hauler-Mutant | -6/Factory Hauler-Mutant | -6/Extension Hauler-Mutant | -6/Cetus Hauler-Mutant | -6/Archives Hauler-Mutant | -6/Hub_04(d) Bothacker-Mutant | -6/Garrison Bothacker-Mutant | -5/Factory Scavenger-Tank | -5/Waste Scavenger-Mutant | -5/Factory Scavenger-Mutant | -5/Garrison Botlord-Mutant | -5/Factory Resources | -11 -10 -10 -9 -9 -9 -8 -8 -8 -8 -8 -7 -7 -7 -7 -6 -6 -6 -6 -6 -6 -6 -6 -5 -5 -5 -5 -5 ----------- Run | Scr Mat Min Mat Min Exi Min Mat Gar Mat Gar Fac Gar Fac Gar Fac Was Fac Ext Cet Arc Hub Gar Fac Was Fac Gar Fac Matter Collected 15658 | 272 161 69 534 97 30 147 136 764 1469 365 194 255 1353 603 130 433 265 631 301 385 2059 1013 1468 167 1290 733 334 Remotely . | . . . . . . . . . . . . . . . . . . . . . . . . . . . . Salvage Created 28652 | 89 593 186 2049 180 . 326 696 1625 1861 396 269 890 2246 1509 280 522 65 676 452 493 3018 1326 2442 1635 3517 1064 247 Parts 1206 | 3 33 11 138 10 . 14 27 53 102 20 12 37 94 58 17 12 4 37 19 27 142 43 96 26 118 40 13 Haulers Intercepted 15 | . 2 . 5 . . . 1 . 4 . . . . . . . . . . . 1 . 1 . 1 . . Recyclers Shooed 27 | . 3 . 3 . . . . . 2 . 1 . 5 . 3 . . 2 . . . . 6 . 2 . . Parts Field Recycled . | . . . . . . . . . . . . . . . . . . . . . . . . . . . . Retrieved Matter . | . . . . . . . . . . . . . . . . . . . . . . . . . . . . Parts Self-Destructed . | . . . . . . . . . . . . . . . . . . . . . . . . . . . . Prevented . | . . . . . . . . . . . . . . . . . . . . . . . . . . . . Kills | -11 -10 -10 -9 -9 -9 -8 -8 -8 -8 -8 -7 -7 -7 -7 -6 -6 -6 -6 -6 -6 -6 -6 -5 -5 -5 -5 -5 ------- Run | Scr Mat Min Mat Min Exi Min Mat Gar Mat Gar Fac Gar Fac Gar Fac Was Fac Ext Cet Arc Hub Gar Fac Was Fac Gar Fac Combat Hostiles Destroyed 429 | . 12 4 40 14 . 8 17 27 40 16 1 18 22 17 7 2 1 6 8 3 43 24 27 6 41 21 4 Melee 15 | . . . . . . . . . . . . . . . 1 . . . . . . . 10 . 3 . 1 Guns 154 | . 12 2 10 . . 7 2 3 1 2 . 7 21 11 4 2 . 4 . 3 28 1 7 6 16 4 1 Cannons 106 | . . . 25 1 . 1 5 6 17 3 1 7 . . . . 1 2 . . 7 12 5 . 9 3 1 AOE 120 | . . 2 5 13 . . 10 15 21 11 . 2 1 6 2 . . . 3 . 5 6 2 . 5 11 . Classes Destroyed 20 | 1 4 . 7 2 . . . . 1 . 1 . 2 1 . 1 . . . . . . . . . . . Worker 33 | . . . 3 . . . 1 . 4 . . . 3 . 1 . . 1 . . 11 . 4 . 5 . . Builder 19 | . . . 1 . . . 2 . 6 . . . . . . . . 1 . . 5 . 2 . 2 . . Tunneler 3 | . . . . . . . . . . . . . 1 . . . . 1 . . . . 1 . . . . Hauler 15 | . 2 . 5 . . . 1 . 4 . . . . . . . . . . . 1 . 1 . 1 . . Recycler 37 | 1 1 1 2 1 . . 1 . 4 . 3 . 11 . 1 . . 2 . . . . 5 . 4 . . Mechanic 5 | . . . 1 . . . . . 3 . . . . . . . . . . . . . . . 1 . . Operator 11 | . . . 1 . . . . . 2 . . . 1 . . . . . . 6 1 . . . . . . Watcher 28 | . 2 . 4 . . . 2 . 4 . . . 4 . . . . . 1 . 3 1 3 . 2 1 1 Swarmer 81 | . 4 2 12 4 . 3 4 6 5 7 . 3 . 8 7 . . . 3 . . 4 4 . . 5 . Grunt 190 | . 8 2 15 3 . 4 10 10 21 5 . 13 13 4 . . . 3 . . 21 15 7 . 24 12 . Brawler 22 | . . . 2 . . 1 . 7 3 2 . 2 1 1 . . . . . . . . . . 2 . 1 Duelist 14 | . . . 1 . . . 1 3 3 2 . . . . . . . . . . 2 . 1 . . 1 . Protector 3 | . . . . . . . . . 1 . . . . . . . . . . . 2 . . . . . . Sentry 49 | . . . 10 . . . 2 3 7 . . . . 3 . . 1 2 . 3 6 5 2 . 4 1 . Demolisher 1 | . . . . 1 . . . . . . . . . . . . . . . . . . . . . . . Hunter 13 | . . . . . . . . . . . . . 4 . . . . 1 . . . . 1 . 4 2 1 Programmer 29 | . . . . . . . . . . . 1 . 4 . . . . . . . 3 . 12 . 7 . 2 Behemoth 1 | . . . . . . . . . . . . . . 1 . . . . . . . . . . . . . Compactor 8 | . . . . . . . . . . . . . . . . 2 . . . . . . . 6 . . . Cetus Guard 5 | . . . . . . . . . . . . . . . . . . . 5 . . . . . . . . Lightning 9 | . . . . . . . . . . . . . . . . . . . . . 9 . . . . . . Assembled 6 | . . . . 6 . . . . . . . . . . . . . . . . . . . . . . . Best Kill Streak 15 | 1 3 4 7 12 . 3 15 5 10 4 2 4 8 5 4 1 1 4 3 2 14 7 11 6 7 11 2 Combat Bots Only 13 | . 3 3 4 11 . 3 11 5 7 4 1 4 6 5 4 1 1 3 3 1 13 7 5 6 6 11 1 Max Kills in Single Turn 14 | 1 1 3 2 6 . 2 2 3 4 4 1 2 3 2 2 1 1 1 3 1 14 2 2 1 2 5 1 Gunslinging 1 | . . . . . . . . . . . . . . 1 . . . . . . . . . . . . . Exploded 6 | . . 2 2 6 . . 2 3 3 4 . 1 1 2 2 . . . 3 . 1 2 1 . 1 5 . Melee 1 | . . . . . . . . . . . . . . . 1 . . . . . . . 1 . 1 . 1 Uniques/NPCs Destroyed . | . . . . . . . . . . . . . . . . . . . . . . . . . . . . Combat | -11 -10 -10 -9 -9 -9 -8 -8 -8 -8 -8 -7 -7 -7 -7 -6 -6 -6 -6 -6 -6 -6 -6 -5 -5 -5 -5 -5 -------- Run | Scr Mat Min Mat Min Exi Min Mat Gar Mat Gar Fac Gar Fac Gar Fac Was Fac Ext Cet Arc Hub Gar Fac Was Fac Gar Fac Damage Taken 24384 | . 454 438 866 386 . 234 473 386 1694 370 88 656 1736 1321 297 . 90 455 288 329 4255 694 3351 478 3287 836 922 Core 2566 | . 87 36 85 60 . 14 73 32 203 62 . 125 145 136 102 . 11 55 15 22 257 42 325 221 304 73 81 Absorbed by Shields 513 | . . . . . . . . 44 . . . . . 33 56 . . . 212 . . 99 . . . 69 . Reduced by Siege Mode 199 | . . . . . . . . . . . . . . . . . . . . . 110 3 23 . 41 11 11 Core Remaining (%) 54 | 100 . 50 . . . 60 . . . 32 . . . 42 . . . . . . . 40 . . . . . Volleys Fired 1648 | 2 79 23 94 16 . 18 65 109 133 134 12 51 96 36 22 42 8 71 17 76 182 65 91 2 123 61 20 Largest 3 | 2 2 2 3 2 . 3 3 3 3 3 3 3 3 3 1 3 2 3 1 3 3 1 3 2 3 3 3 Hottest 255 | 60 60 60 204 136 . 181 206 198 165 201 201 181 193 160 30 204 165 255 240 105 205 70 170 70 135 163 164 Shots Fired 2906 | 4 154 38 248 22 . 33 101 161 252 155 29 110 237 68 22 59 9 111 17 113 384 65 146 59 194 85 30 Gun 1647 | 4 154 36 74 . . 25 17 55 39 25 14 67 221 57 18 39 1 50 5 102 302 9 83 59 144 40 7 Cannon 997 | . . . 172 11 . 8 69 86 185 113 15 41 12 . . 3 7 22 . . 65 49 49 . 39 36 15 Launcher 179 | . . 2 2 11 . . 15 20 28 17 . 2 . 10 . 2 1 6 12 . 16 7 5 . 10 9 4 Special 83 | . . . . . . . . . . . . . 4 1 4 15 . 33 . 11 1 . 9 . 1 . 4 Kinetic 1141 | 2 107 29 23 . . . . . 129 10 3 14 137 46 18 24 . 42 . 55 265 1 77 3 98 37 21 Thermal 770 | 2 47 7 213 11 . 19 85 51 70 9 20 . 21 . . 18 8 24 1 . 54 . 26 56 22 6 . Explosive 131 | . . 2 2 11 . . 15 20 28 17 . 2 . 4 . . 1 . 2 . 12 3 3 . . 9 . Electromagnetic 781 | . . . 10 . . 14 1 90 25 119 6 94 75 17 . 2 . 12 14 47 52 61 31 . 73 33 5 Robot Hit Streak 57 | 2 13 10 28 14 . 33 6 21 14 10 6 12 15 19 6 20 1 23 12 22 31 15 16 47 57 14 14 Robot Miss Streak 8 | 1 5 5 4 1 . 3 3 2 8 4 5 8 6 2 3 2 1 2 . 3 5 1 3 1 3 3 2 Penetration Max 1 | . . . . . . . . . . . . . 1 1 . . . 1 . 1 1 1 1 . 1 . 1 Secondary Targets 15 | . 2 . . . . . . . . . . . 3 5 . . . . . . 4 . . . 1 . . Max Gunslinging Chain 1 | . 1 . . . . . . . . . . . 1 1 . . . . . . 1 . . . 1 . . Autonomous 89 | . . . . . . 11 . . . . . . . . . . . . . . . . . 56 16 6 . Shots Hit Robots 1846 | 3 96 25 146 17 . 30 35 79 159 27 14 68 137 75 18 50 1 80 8 68 252 34 128 57 164 51 24 Core Hits 1087 | 2 37 11 73 28 . 14 41 57 134 26 4 37 64 50 10 8 2 31 18 30 146 28 68 18 104 39 7 Critical Hits 100 | . 1 . 16 . . 2 7 . 1 . 1 . 1 5 2 . . . . 7 25 6 6 . 14 2 4 Critical Kills 42 | . . . 5 . . 2 1 . 1 . 1 . . 3 2 . . . . 2 8 2 4 . 9 1 1 Critical Parts Destroyed 54 | . 1 . 10 . . . 6 . . . . . 1 2 . . . . . 3 17 4 2 . 4 1 3 Melee Attacks 266 | . . . . . . . . . 4 . 2 . 23 29 15 . . . . . 13 2 135 . 24 11 8 Impact . | . . . . . . . . . . . . . . . . . . . . . . . . . . . . Slashing 74 | . . . . . . . . . . . 2 . 17 . . . . . . . 13 2 40 . . . . Piercing 184 | . . . . . . . . . . . . . 2 29 15 . . . . . . . 95 . 24 11 8 Sneak Attacks 23 | . . . . . . . . . 4 . . . 7 . 2 . . . . . . . 7 . 3 . . Combat Hostiles . | . . . . . . . . . . . . . . . . . . . . . . . . . . . . Follow-up Attacks 4 | . . . . . . . . . . . . . . . . . . . . . . . 4 . . . . Damage Inflicted 62496 | 31 914 298 3026 1077 . 667 1866 3605 5735 1403 339 1724 3367 3572 626 867 52 1708 1224 1643 9167 2438 4849 1717 6622 3110 849 Guns 23177 | 31 914 214 751 . . 467 235 726 389 88 134 700 2782 952 227 802 22 756 40 1386 4694 82 1370 1717 2711 822 165 Cannons 14890 | . . . 2011 165 . 143 567 1077 2532 230 171 672 79 . . 62 30 567 . . 1198 1601 1286 . 1554 560 385 Explosions 18905 | . . 84 264 912 . 57 1064 1802 2814 1085 . 352 239 712 179 3 . 379 1184 257 3226 755 419 . 1610 1388 120 Melee 5516 | . . . . . . . . . . . 32 . 267 1908 220 . . . . . 49 . 1774 . 747 340 179 Ramming 8 | . . . . . . . . . . . 2 . . . . . . 6 . . . . . . . . . Kinetic 16871 | 10 531 148 189 . . . . . 1897 76 15 227 1835 820 227 474 . 665 . 840 4692 . 1238 79 1807 692 409 Thermal 12756 | 21 383 66 2561 165 . 497 780 839 673 179 262 290 296 172 179 390 52 689 193 257 687 49 631 1638 633 174 . Explosive 12429 | . . 84 123 912 . . 1064 1582 2814 994 . 62 239 301 . . . . 309 . 1528 429 291 . 309 1388 . Electromagnetic 14916 | . . . 153 . . 170 22 1184 351 154 28 1145 730 371 . 3 . 348 722 546 2211 1960 915 . 3126 516 261 Impact . | . . . . . . . . . . . . . . . . . . . . . . . . . . . . Slashing 815 | . . . . . . . . . . . 32 . 267 . . . . . . . 49 . 467 . . . . Piercing 4701 | . . . . . . . . . . . . . . 1908 220 . . . . . . . 1307 . 747 340 179 Highest Corruption 10 | . . . 10 10 10 10 . . . . 1 1 5 5 . . . . . . 5 4 4 5 5 5 9 Average Corruption 4 | . . . 9 10 10 10 . . . . 1 1 3 2 . . . . . . 3 2 3 3 3 3 5 Corruption Purged 27 | . . . . . . . . . . . . . . 5 . . . . . . 1 4 4 6 . 5 2 Effects 355 | . . . 90 33 22 28 . . . . . 7 45 13 . . . . . . 29 5 46 7 17 8 5 Message Errors 58 | . . . 8 4 4 6 . . . . . 2 7 2 . . . . . . 4 1 8 2 6 2 2 Matter Fused 79 | . . . 22 9 5 4 . . . . . . 7 2 . . . . . . 6 2 15 3 2 2 . Heat Flow Errors 39 | . . . 4 4 5 2 . . . . . . 6 2 . . . . . . 4 . 7 . 3 2 . Energy Discharges 37 | . . . 6 2 2 4 . . . . . 1 3 1 . . . . . . 4 . 10 1 2 . 1 Parts Rejected 2 | . . . 1 . . . . . . . . . 1 . . . . . . . . . . . . . . Data Loss (minor) 38 | . . . 10 5 2 2 . . . . . 1 5 2 . . . . . . 4 1 2 1 1 1 1 Data Loss (major) 14 | . . . 6 1 3 3 . . . . . . 1 . . . . . . . . . . . . . . Misfires 2 | . . . 1 1 . . . . . . . . . . . . . . . . . . . . . . . Alerts 2 | . . . . 1 . 1 . . . . . . . . . . . . . . . . . . . . . Misdirections 12 | . . . 3 5 1 3 . . . . . . . . . . . . . . . . . . . . . Targeting Errors 63 | . . . 28 1 . 1 . . . . . 2 12 4 . . . . . . 6 1 4 . 3 1 . Weapon Failures 9 | . . . 1 . . 2 . . . . . 1 3 . . . . . . . 1 . . . . . 1 Overload Shots 1 | . . . . . . . . . . . . . . . . . . . 1 . . . . . . . . Overflow Damage 1164 | . . . 62 17 . 12 14 27 92 45 . . 74 111 36 . . 6 38 . 179 30 202 . 184 32 3 Projectiles 366 | . . . 33 . . . . 7 31 . . . 12 . . . . 6 . . 50 . 54 . 163 7 3 Explosions 526 | . . . 29 17 . 12 14 20 61 45 . . . 60 . . . . 38 . 129 30 36 . 10 25 . Melee 272 | . . . . . . . . . . . . . 62 51 36 . . . . . . . 112 . 11 . . Knockbacks 38 | . . . . . . . . . 23 3 . 2 . . . . . . . . . . . . . 6 4 Impact . | . . . . . . . . . . . . . . . . . . . . . . . . . . . . Kinetic 38 | . . . . . . . . . 23 3 . 2 . . . . . . . . . . . . . 6 4 Secondary . | . . . . . . . . . . . . . . . . . . . . . . . . . . . . Self-Inflicted Damage 1088 | . . 19 182 21 . . . 64 235 127 . 47 . . 148 . . 3 . 52 17 . 89 . 84 . . Shots 29 | . . 1 3 2 . . . 2 6 5 . 1 . . 2 . . . . 1 2 . 2 . 2 . . Rammed 2 | . . . . . . . . . . . 1 . . . . . . 1 . . . . . . . . . Targets Rammed 2 | . . . . . . . . . . . 1 . . . . . . 1 . . . . . . . . . Kicked . | . . . . . . . . . . . . . . . . . . . . . . . . . . . . Crushed . | . . . . . . . . . . . . . . . . . . . . . . . . . . . . Highest Temperature 682 | 20 120 94 682 258 194 360 421 398 342 276 252 319 363 339 34 212 90 401 192 212 492 60 405 . 534 295 60 Average Temperature 100 | 15 30 36 127 95 75 156 155 135 108 75 73 57 81 97 5 91 45 107 60 64 106 25 109 . 111 75 22 Received Heat Transfer 6747 | . 192 228 222 60 . 99 252 111 702 63 . 306 693 279 . . 24 135 13 18 1278 242 819 . 744 204 63 Effects 53 | . . . 12 . . 2 9 4 3 1 . 2 . 1 . . . 2 . . 6 . 1 . 10 . . Shutdowns 9 | . . . 1 . . 1 3 . 1 . . . . . . . . 1 . . 2 . . . . . . Energy Bleed 12 | . . . 4 . . 1 . . . 1 . . . 1 . . . . . . 3 . . . 2 . . Interference 12 | . . . . . . . 2 3 1 . . 2 . . . . . . . . . . . . 4 . . Matter Decay 1 | . . . . . . . . . . . . . . . . . . . . . . . 1 . . . . Short Circuit 5 | . . . 1 . . . 1 1 1 . . . . . . . . . . . . . . . 1 . . Damage (minor) 6 | . . . 3 . . . . . . . . . . . . . . 1 . . 1 . . . 1 . . Damage (major) 8 | . . . 3 . . . 3 . . . . . . . . . . . . . . . . . 2 . . Siege Activations 34 | . . . . . . . . . . . . . . . . . . . . 2 13 2 4 . 6 5 2 Total Turns 722 | . . . . . . . . . . . . . . . . . . . . 33 314 47 51 . 95 106 76 Longest Duration 65 | . . . . . . . . . . . . . . . . . . . . 21 65 26 28 . 34 41 56 Robots Corrupted 44 | . . . . . . . . 8 2 . . 2 . . . . . . 5 2 3 6 3 . 9 3 1 Combat Hostiles 33 | . . . . . . . . 3 1 . . 2 . . . . . . 5 . 3 5 3 . 7 3 1 Parts Fried 97 | . . . . . . . . 7 2 . . 8 3 2 . . . . 3 6 6 18 9 . 23 7 3 Impact Corruptions . | . . . . . . . . . . . . . . . . . . . . . . . . . . . . Robots Melted 1 | . . . . . . . . . . . . . . . . . . . . . . . . . 1 . . Combat Hostiles 1 | . . . . . . . . . . . . . . . . . . . . . . . . . 1 . . Parts Melted 27 | . 1 . 13 1 . . 3 . 1 . 1 . . . . . . . . 1 . . 1 . 5 . . Heat Transferred 19688 | 50 875 150 4516 296 . 679 1369 1397 1025 300 435 300 650 200 150 824 87 1122 150 300 1100 50 525 2072 844 222 . Parts Sabotaged 1 | . . . . . . . . . . . . . . . . . . . . . 1 . . . . . . Parts Stolen . | . . . . . . . . . . . . . . . . . . . . . . . . . . . . Parts Stripped . | . . . . . . . . . . . . . . . . . . . . . . . . . . . . Power Chain Reactions 28 | . . . 2 . . 1 . 3 . 2 . 2 . 5 . 1 . 2 1 3 3 1 1 . 1 . . Missiles Intercepted . | . . . . . . . . . . . . . . . . . . . . . . . . . . . . Alert | -11 -10 -10 -9 -9 -9 -8 -8 -8 -8 -8 -7 -7 -7 -7 -6 -6 -6 -6 -6 -6 -6 -6 -5 -5 -5 -5 -5 ------- Run | Scr Mat Min Mat Min Exi Min Mat Gar Mat Gar Fac Gar Fac Gar Fac Was Fac Ext Cet Arc Hub Gar Fac Was Fac Gar Fac Peak Influence 1750 | 5 165 147 817 488 . 135 451 1750 1286 1387 835 972 749 1010 850 302 228 381 687 469 1288 1611 919 147 914 1359 743 Average Influence 604 | 1 55 71 378 357 . 89 80 1165 800 1174 733 811 414 792 706 214 74 138 412 115 472 1375 283 62 266 1110 485 Maximum Alert Level 5 | . . . 3 2 . . 2 5 4 4 3 3 3 3 3 1 1 1 2 2 4 5 3 . 3 4 3 Low Security (%) 30 | . . . . . . . . . . . . . . . . . . . . . . . . . . . . Level 1 12 | . . . . . . . . . . . . . . . . . . . . . . . . . . . . Level 2 16 | . . . . . . . . . . . . . . . . . . . . . . . . . . . . Level 3 20 | . . . . . . . . . . . . . . . . . . . . . . . . . . . . Level 4 17 | . . . . . . . . . . . . . . . . . . . . . . . . . . . . Level 5 2 | . . . . . . . . . . . . . . . . . . . . . . . . . . . . High Security . | . . . . . . . . . . . . . . . . . . . . . . . . . . . . Max Security . | . . . . . . . . . . . . . . . . . . . . . . . . . . . . Squads Dispatched 80 | . 3 1 6 . . . 3 . 8 . 1 . 9 . . . 1 2 . . 19 . 14 . 11 . 2 Investigation 6 | . 2 . 2 . . . 1 . . . . . . . . . . . . . . . 1 . . . . Extermination 21 | . . . . . . . . . . . 1 . 4 . . . 1 . . . 3 . 7 . 4 . 1 Reinforcement 28 | . 1 . 3 . . . 1 . 3 . . . 5 . . . . 2 . . 7 . 3 . 2 . 1 Assault 16 | . . 1 1 . . . . . 5 . . . . . . . . . . . 6 . 1 . 2 . . Garrison 9 | . . . . . . . 1 . . . . . . . . . . . . . 3 . 2 . 3 . . Intercept . | . . . . . . . . . . . . . . . . . . . . . . . . . . . . Construction Impeded 8 | . . . 1 . . . 1 . 2 . . . 1 . . . . 1 . . 1 . . . 1 . . Haulers Reinforced 1 | . . . . . . . . . . . . . 1 . . . . . . . . . . . . . . Stealth | -11 -10 -10 -9 -9 -9 -8 -8 -8 -8 -8 -7 -7 -7 -7 -6 -6 -6 -6 -6 -6 -6 -6 -5 -5 -5 -5 -5 --------- Run | Scr Mat Min Mat Min Exi Min Mat Gar Mat Gar Fac Gar Fac Gar Fac Was Fac Ext Cet Arc Hub Gar Fac Was Fac Gar Fac Distress Signals 28 | . 1 . 1 . . . 2 . 5 . 1 . 3 . . . . 4 2 . 4 . 3 . 2 . . Communications Jammed . | . . . . . . . . . . . . . . . . . . . . . . . . . . . . Distress Signals . | . . . . . . . . . . . . . . . . . . . . . . . . . . . . Times Spotted 728 | . 25 10 54 30 . 10 21 32 62 19 6 17 37 22 8 6 5 28 24 34 81 26 55 6 66 33 11 Peak Tracking Total 16 | . 5 4 4 16 . 3 7 4 6 4 3 4 4 7 4 2 4 4 5 1 13 8 7 5 9 7 4 Tactical Retreats 67 | . 5 2 1 1 . 2 1 1 . 7 . . 2 1 1 . . 3 . . 5 4 11 . 7 11 2 Traps | -11 -10 -10 -9 -9 -9 -8 -8 -8 -8 -8 -7 -7 -7 -7 -6 -6 -6 -6 -6 -6 -6 -6 -5 -5 -5 -5 -5 ------- Run | Scr Mat Min Mat Min Exi Min Mat Gar Mat Gar Fac Gar Fac Gar Fac Was Fac Ext Cet Arc Hub Gar Fac Was Fac Gar Fac Traps Triggered 48 | . 2 . 3 . . . . 3 . 4 . 1 3 11 1 . . 2 . . 1 8 2 . 2 5 . Indirectly 1 | . . . . . . . . . . . . . . . . . . . . . 1 . . . . . . Trap Hack Attempts 20 | . . . . . . . . . 20 . . . . . . . . . . . . . . . . . . Triggered . | . . . . . . . . . . . . . . . . . . . . . . . . . . . . Disarmed . | . . . . . . . . . . . . . . . . . . . . . . . . . . . . Reprogrammed 2 | . . . . . . . . . 2 . . . . . . . . . . . . . . . . . . Reused 2 | . . . . . . . . . 2 . . . . . . . . . . . . . . . . . . Traps Extracted . | . . . . . . . . . . . . . . . . . . . . . . . . . . . . Installed . | . . . . . . . . . . . . . . . . . . . . . . . . . . . . Triggered 13 | . . . . . . . . . 2 . . . 3 . . . . 6 . . . . 1 . 1 . . Machines | -11 -10 -10 -9 -9 -9 -8 -8 -8 -8 -8 -7 -7 -7 -7 -6 -6 -6 -6 -6 -6 -6 -6 -5 -5 -5 -5 -5 ---------- Run | Scr Mat Min Mat Min Exi Min Mat Gar Mat Gar Fac Gar Fac Gar Fac Was Fac Ext Cet Arc Hub Gar Fac Was Fac Gar Fac Machines Disabled 110 | . . . 7 . . 1 2 6 6 4 . 3 11 5 8 . 1 3 3 3 25 7 2 . 7 6 . Max in Single Turn 13 | . . . 1 . . 1 1 1 1 1 . 1 2 2 8 . . 1 1 1 13 1 1 . 2 2 . Garrison Access 1 | . . . . . . . . . . . . . . . 1 . . . . . . . . . . . . Garrison Relay 21 | . . . . . . . . 6 . 4 . 3 . 3 . . . . . . . 3 . . . 2 . Network Hub 2 | . . . . . . . . . . . . . . . . . . . . . 2 . . . . . . Machines Sabotaged . | . . . . . . . . . . . . . . . . . . . . . . . . . . . . Garrisons Compromised . | . . . . . . . . . . . . . . . . . . . . . . . . . . . . Overloaded Fab Kills . | . . . . . . . . . . . . . . . . . . . . . . . . . . . . Fab Network Shutdowns . | . . . . . . . . . . . . . . . . . . . . . . . . . . . . Hacking | -11 -10 -10 -9 -9 -9 -8 -8 -8 -8 -8 -7 -7 -7 -7 -6 -6 -6 -6 -6 -6 -6 -6 -5 -5 -5 -5 -5 --------- Run | Scr Mat Min Mat Min Exi Min Mat Gar Mat Gar Fac Gar Fac Gar Fac Was Fac Ext Cet Arc Hub Gar Fac Was Fac Gar Fac Machines Accessed 75 | . 2 . 10 . 1 . 2 . 7 . 4 . 6 . 1 . 2 11 2 1 3 . 11 . 9 . 3 Terminals 47 | . 2 . 8 . . . . . 5 . 3 . 4 . . . 1 10 2 . 2 . 4 . 3 . 3 Fabricators 3 | . . . . . . . . . . . . . . . . . . . . . . . 2 . 1 . . Repair Stations 10 | . . . 1 . . . 1 . 1 . . . 1 . . . . . . . . . 3 . 3 . . Recycling Units 5 | . . . 1 . . . . . . . . . . . . . 1 1 . . . . 1 . 1 . . Scanalyzers 1 | . . . . . . . . . . . . . . . . . . . . . . . 1 . . . . Garrison Access 7 | . . . . . . . 1 . 1 . 1 . 1 . 1 . . . . . 1 . . . 1 . . Total Hacks 282 | . 5 . 24 . 1 . 6 . 18 . 8 . 22 . 1 . 4 21 2 25 6 . 69 . 42 . 28 Successful 158 | . 2 . 10 . 1 . 3 . 11 . 5 . 14 . 1 . 3 11 1 25 5 . 36 . 19 . 11 Failed 124 | . 3 . 14 . . . 3 . 7 . 3 . 8 . . . 1 10 1 . 1 . 33 . 23 . 17 Catastrophic 24 | . 1 . 2 . . . . . 1 . 1 . . . . . . 3 . . 1 . 8 . 4 . 3 Database Lockouts . | . . . . . . . . . . . . . . . . . . . . . . . . . . . . Manual 143 | . 5 . 16 . 1 . . . 13 . 4 . 8 . . . 3 12 3 . 2 . 30 . 22 . 24 Terminals 163 | . 5 . 18 . . . . . 13 . 7 . 10 . . . 3 20 2 . 5 . 32 . 20 . 28 Fabricators 19 | . . . . . . . . . . . . . . . . . . . . . . . 9 . 10 . . Repair Stations 51 | . . . 3 . . . 5 . 4 . . . 11 . . . . . . . . . 18 . 10 . . Recycling Units 7 | . . . 3 . . . . . . . . . . . . . 1 1 . . . . 1 . 1 . . Scanalyzers 9 | . . . . . . . . . . . . . . . . . . . . . . . 9 . . . . Garrison Access 7 | . . . . . . . 1 . 1 . 1 . 1 . 1 . . . . . 1 . . . 1 . . Terminal Hacks 59 | . . . 2 . 1 . . . 4 . 1 . 2 . . . 1 7 . 25 3 . 8 . 1 . 4 Record 25 | . . . . . . . . . . . . . . . . . . . . 25 . . . . . . . Part Schematic 1 | . . . . . . . . . . . . . . . . . . . . . 1 . . . . . . Open Door 4 | . . . . . . . . . . . . . . . . . . 4 . . . . . . . . . Terminal Index 4 | . . . . . . . . . 1 . . . . . . . . . . . . . 1 . 1 . 1 Fabricator Index 2 | . . . . . . . . . . . . . . . . . . . . . . . 1 . . . 1 Unreport Threat 8 | . . . . . . . . . . . . . . . . . 1 2 . . 1 . 2 . . . 2 Locate Traps 2 | . . . . . . . . . . . . . . . . . . . . . 1 . 1 . . . . Reprogram Traps 1 | . . . . . . . . . . . . . 1 . . . . . . . . . . . . . . Dispatch Records 2 | . . . 1 . . . . . . . . . . . . . . . . . . . 1 . . . . Zone Layout 9 | . . . 1 . . . . . 3 . 1 . 1 . . . . 1 . . . . 2 . . . . EX-Prototype ID Bank 1 | . . . . . 1 . . . . . . . . . . . . . . . . . . . . . . Fabricator Hacks 9 | . . . . . . . . . . . . . . . . . . . . . . . 5 . 4 . . Load Schematic 4 | . . . . . . . . . . . . . . . . . . . . . . . 2 . 2 . . Build 5 | . . . . . . . . . . . . . . . . . . . . . . . 3 . 2 . . Repair Station Hacks 26 | . . . 2 . . . 2 . 4 . . . 6 . . . . . . . . . 6 . 6 . . Scan Component 13 | . . . 1 . . . 1 . 2 . . . 3 . . . . . . . . . 3 . 3 . . Repair 11 | . . . 1 . . . 1 . 2 . . . 2 . . . . . . . . . 3 . 2 . . Refit 2 | . . . . . . . . . . . . . 1 . . . . . . . . . . . 1 . . Recycling Unit Hacks 4 | . . . 1 . . . . . . . . . . . . . 1 1 . . . . . . 1 . . Retrieve Components 4 | . . . 1 . . . . . . . . . . . . . 1 1 . . . . . . 1 . . Scanalyzer 9 | . . . . . . . . . . . . . . . . . . . . . . . 9 . . . . Insert Component 3 | . . . . . . . . . . . . . . . . . . . . . . . 3 . . . . Analyze 6 | . . . . . . . . . . . . . . . . . . . . . . . 6 . . . . Garrison Access Hacks 7 | . . . . . . . 1 . 1 . 1 . 1 . 1 . . . . . 1 . . . 1 . . Unlock Access 6 | . . . . . . . 1 . 1 . 1 . 1 . . . . . . . 1 . . . 1 . . Seal Access 1 | . . . . . . . . . . . . . . . 1 . . . . . . . . . . . . Unauthorized Hacks 121 | . 7 . 14 . . . . . 6 . 7 . 11 . . . 3 9 2 . 2 . 18 . 22 . 20 Terminals 43 | . 2 . 5 . . . . . 2 . 3 . 5 . . . 1 3 1 . 1 . 8 . 5 . 7 Track 22 | . 2 . 5 . . . . . 2 . . . 2 . . . . 3 1 . . . 3 . 2 . 2 Assimilate 1 | . . . . . . . . . . . . . . . . . . . . . . . 1 . . . . Botnet 13 | . . . . . . . . . . . 2 . 2 . . . . . . . 1 . 3 . 2 . 3 Disrupt 1 | . . . . . . . . . . . . . . . . . . . . . . . . . . . 1 Operators 6 | . . . . . . . . . . . 1 . 1 . . . 1 . . . . . 1 . 1 . 1 Fabricators 1 | . . . . . . . . . . . . . . . . . . . . . . . . . 1 . . Prioritize 1 | . . . . . . . . . . . . . . . . . . . . . . . . . 1 . . Repair Stations . | . . . . . . . . . . . . . . . . . . . . . . . . . . . . Recycling Units . | . . . . . . . . . . . . . . . . . . . . . . . . . . . . Scanalyzers . | . . . . . . . . . . . . . . . . . . . . . . . . . . . . Garrison Access . | . . . . . . . . . . . . . . . . . . . . . . . . . . . . Data Cores Recovered 1 | . . . . . . . . . . . . . . . . . . 1 . . . . . . . . . Used . | . . . . . . . . . . . . . . . . . . . . . . . . . . . . Hacking Detections 54 | . 2 . 6 . . . 1 . 5 . 3 . 5 . . . 2 9 1 . 2 . 10 . 5 . 3 Full Trace Events 1 | . . . . . . . 1 . . . . . . . . . . . . . . . . . . . . Feedback Events . | . . . . . . . . . . . . . . . . . . . . . . . . . . . . Feedback Blocked . | . . . . . . . . . . . . . . . . . . . . . . . . . . . . Robot Schematics Acquired . | . . . . . . . . . . . . . . . . . . . . . . . . . . . . Robots Built . | . . . . . . . . . . . . . . . . . . . . . . . . . . . . Matter . | . . . . . . . . . . . . . . . . . . . . . . . . . . . . Time . | . . . . . . . . . . . . . . . . . . . . . . . . . . . . Total Robot Build Rating . | . . . . . . . . . . . . . . . . . . . . . . . . . . . . Part Schematics Acquired 3 | . . . . . . . . . . . . . . . . . . . . . 1 . 2 . . . . Parts Built 8 | . . . . . . . . . . . . . . . . . . . . . . . 6 . 2 . . Matter 1371 | . . . . . . . . . . . . . . . . . . . . . . . 702 . 669 . . Time 428 | . . . . . . . . . . . . . . . . . . . . . . . 174 . 254 . . Total Part Build Rating 55 | . . . . . . . . . . . . . . . . . . . . . . . 42 . 13 . . Parts Repaired 11 | . . . 1 . . . 1 . 2 . . . 2 . . . . . . . . . 3 . 2 . . Time 630 | . . . 64 . . . 32 . 70 . . . 64 . . . . . . . . . 260 . 140 . . Parts Recycled . | . . . . . . . . . . . . . . . . . . . . . . . . . . . . Recycled Matter . | . . . . . . . . . . . . . . . . . . . . . . . . . . . . Retrieved Matter . | . . . . . . . . . . . . . . . . . . . . . . . . . . . . Retrieved Components 18 | . . . 5 . . . . . . . . . . . . . 1 10 . . . . . . 2 . . Parts Scanalyzed 2 | . . . . . . . . . . . . . . . . . . . . . . . 2 . . . . Part Schematics Acquired 2 | . . . . . . . . . . . . . . . . . . . . . . . 2 . . . . Parts Damaged . | . . . . . . . . . . . . . . . . . . . . . . . . . . . . Bothacking | -11 -10 -10 -9 -9 -9 -8 -8 -8 -8 -8 -7 -7 -7 -7 -6 -6 -6 -6 -6 -6 -6 -6 -5 -5 -5 -5 -5 ------------ Run | Scr Mat Min Mat Min Exi Min Mat Gar Mat Gar Fac Gar Fac Gar Fac Was Fac Ext Cet Arc Hub Gar Fac Was Fac Gar Fac Used RIF Installer 6 | . . . . . . . . 1 . 1 . 1 . 1 . . . . . . . 1 . . . 1 . Coupler Efficiency 2 | . . . . . . . . . . 1 . . . . . . . . . . . 1 . . . . . Structural Interface 1 | . . . . . . . . . . . . 1 . . . . . . . . . . . . . . . Autooverride 2 | . . . . . . . . . . . . . . 1 . . . . . . . . . . . 1 . Robots Hacked 30 | . . . . . . . . . 1 . . . 2 . 2 9 . 7 . 2 1 . 3 . 1 . 2 Non-combat 17 | . . . . . . . . . 1 . . . 2 . 2 2 . 4 . 2 . . 3 . 1 . . Combat 13 | . . . . . . . . . . . . . . . . 7 . 3 . . 1 . . . . . 2 Autooverrided 2 | . . . . . . . . . . . . . . . . . . . . . . . . . . . 2 Robot Hacks Applied 46 | . . . . . . . . . 3 . . . 4 . 2 13 . 8 . 4 1 . 8 . 1 . 2 parse_system 14 | . . . . . . . . . . . . . . . . 9 . 3 . . 1 . . . . . 1 generate_echo 1 | . . . . . . . . . . . . . . . . . . . . 1 . . . . . . . find_chute 2 | . . . . . . . . . . . . . . . 2 . . . . . . . . . . . . randomize_corridors 1 | . . . . . . . . . . . . . . . . . . 1 . . . . . . . . . drop_inventory 5 | . . . . . . . . . . . . . 1 . . . . 2 . . . . 2 . . . . purge_threat 10 | . . . . . . . . . 2 . . . 2 . . . . . . 3 . . 3 . . . . reprogram_traps 2 | . . . . . . . . . . . . . 1 . . . . 1 . . . . . . . . . block_reporting 2 | . . . . . . . . . . . . . . . . . . . . . . . 1 . 1 . . summon_haulers 1 | . . . . . . . . . . . . . . . . . . 1 . . . . . . . . . clear_repairs 1 | . . . . . . . . . 1 . . . . . . . . . . . . . . . . . . ignore_targets 4 | . . . . . . . . . . . . . . . . 4 . . . . . . . . . . . link_fov 1 | . . . . . . . . . . . . . . . . . . . . . . . 1 . . . . streamctrl_low 1 | . . . . . . . . . . . . . . . . . . . . . . . 1 . . . . formatsys_high 1 | . . . . . . . . . . . . . . . . . . . . . . . . . . . 1 Relay Couplers Released 80 | . . . . . . . . 24 . 14 . 10 . 12 1 . . . . . . 11 . . . 8 . Machine Destruction 80 | . . . . . . . . 24 . 14 . 10 . 12 1 . . . . . . 11 . . . 8 . Attached 10 | . . . . . . . . 1 1 1 . . 1 . . 1 . . . 1 . . 2 . . . 2 Robots Rewired 26 | . . . . . . . . 6 . . . . . 3 1 . . 13 . 3 . . . . . . . Allies Hacked . | . . . . . . . . . . . . . . . . . . . . . . . . . . . . Hacks Repelled . | . . . . . . . . . . . . . . . . . . . . . . . . . . . . Allies | -11 -10 -10 -9 -9 -9 -8 -8 -8 -8 -8 -7 -7 -7 -7 -6 -6 -6 -6 -6 -6 -6 -6 -5 -5 -5 -5 -5 -------- Run | Scr Mat Min Mat Min Exi Min Mat Gar Mat Gar Fac Gar Fac Gar Fac Was Fac Ext Cet Arc Hub Gar Fac Was Fac Gar Fac Total Allies 63 | . . 4 . . . . . 6 . . . . . 3 1 20 . 18 5 3 . . 1 . . . 2 Largest Group 19 | . . 3 3 . . . . 6 . . . . . 3 1 19 10 9 7 4 4 . 1 . . . 1 Highest-Rated Group 705 | . . 40 40 . . . . 63 . . . . . 114 37 705 434 388 657 438 271 . 26 . . . 49 Highest-Rated Ally 156 | . . 31 16 . . . . 16 . . . . . 38 37 50 50 156 156 156 94 . 26 . . . 49 Total Orders 38 | . . . . . . . . 1 . . . . . . . . . . 17 5 14 . 1 . . . . STAY 1 | . . . . . . . . . . . . . . . . . . . 1 . . . . . . . . GOTO 24 | . . . . . . . . . . . . . . . . . . . 10 4 9 . 1 . . . . FOLLOW 11 | . . . . . . . . 1 . . . . . . . . . . 4 1 5 . . . . . . RETURN 2 | . . . . . . . . . . . . . . . . . . . 2 . . . . . . . . Ally Attacks 515 | . . 7 29 . . . . 87 . . . . . 16 . 112 7 171 61 6 17 . . . . . 2 Total Damage 14931 | . . 146 334 . . . . 702 . . . . . 501 . 4840 371 4626 2310 217 767 . . . . . 117 Kills 100 | . . 2 6 . . . . 10 . . . . . 6 . 13 3 35 19 1 5 . . . . . . Allies Corrupted 1 | . . . . . . . . . . . . . . . . . . . . . . . . . . . 1 Allies Melted . | . . . . . . . . . . . . . . . . . . . . . . . . . . . . Intel | -11 -10 -10 -9 -9 -9 -8 -8 -8 -8 -8 -7 -7 -7 -7 -6 -6 -6 -6 -6 -6 -6 -6 -5 -5 -5 -5 -5 ------- Run | Scr Mat Min Mat Min Exi Min Mat Gar Mat Gar Fac Gar Fac Gar Fac Was Fac Ext Cet Arc Hub Gar Fac Was Fac Gar Fac Robot Analysis Total . | . . . . . . . . . . . . . . . . . . . . . . . . . . . . Derelict Logs Recovered . | . . . . . . . . . . . . . . . . . . . . . . . . . . . . Drone Launches 2 | . . . . . . . . . . . . . . . . . . . 2 . . . . . . . . Drone Recoveries 2 | . . . . . . . . . . . . . . . . . . . 2 . . . . . . . . Exploration | -11 -10 -10 -9 -9 -9 -8 -8 -8 -8 -8 -7 -7 -7 -7 -6 -6 -6 -6 -6 -6 -6 -6 -5 -5 -5 -5 -5 ------------- Run | Scr Mat Min Mat Min Exi Min Mat Gar Mat Gar Fac Gar Fac Gar Fac Was Fac Ext Cet Arc Hub Gar Fac Was Fac Gar Fac Turns Passed 43097 | 68 1022 565 2320 846 683 663 1009 3971 2839 2549 505 1850 1903 1895 398 673 502 2143 580 1019 2470 2392 3934 600 2859 2084 755 Spaces Moved 18302 | 47 500 303 1090 429 376 321 259 1877 1126 1078 203 727 601 725 187 339 292 1144 275 407 758 1054 1437 220 1255 954 318 Core 6 | 6 . . . . . . . . . . . . . . . . . . . . . . . . . . . Treads 15522 | . 396 303 1090 429 376 321 259 1877 1126 1078 203 727 601 691 . . . . . 400 710 1054 1194 160 1255 954 318 Legs . | . . . . . . . . . . . . . . . . . . . . . . . . . . . . Wheels 2774 | 41 104 . . . . . . . . . . . . 34 187 339 292 1144 275 7 48 . 243 60 . . . Hover . | . . . . . . . . . . . . . . . . . . . . . . . . . . . . Flight . | . . . . . . . . . . . . . . . . . . . . . . . . . . . . Fastest Speed 50 | 50 90 160 160 180 160 180 180 180 180 205 205 225 217 150 160 150 150 150 160 170 190 200 140 150 180 180 180 Average Speed 186 | 89 145 160 168 180 176 180 183 180 197 205 214 225 220 222 160 159 159 159 161 199 199 200 191 169 180 180 180 Slowest Speed 265 | 100 160 160 180 180 180 180 220 220 240 205 225 225 265 250 160 160 160 160 170 200 200 200 220 210 180 180 180 Overloaded Moves . | . . . . . . . . . . . . . . . . . . . . . . . . . . . . Propulsion Burnouts . | . . . . . . . . . . . . . . . . . . . . . . . . . . . . Robots Hopped . | . . . . . . . . . . . . . . . . . . . . . . . . . . . . Cave-ins Triggered . | . . . . . . . . . . . . . . . . . . . . . . . . . . . . Exploration Rate (%) 61 | 3 78 65 89 80 70 62 22 93 78 97 11 73 19 93 8 96 11 86 83 100 64 95 34 86 27 91 7 Regions Visited 27 Branch Regions 8 Pre-discovered Areas . | . . . . . . . . . . . . . . . . . . . . . . . . . . . . Known Exits Taken 6 | . . . . . . . 1 . 1 . 1 . 1 . . . . . . . 1 . . . 1 . . Unknown Exits Taken 11 | 1 1 1 1 1 1 1 . . . . . . . . . . 1 1 1 1 . . . . . . . Scrap Searched 1 | . . 1 . . . . . . . . . . . . . . . . . . . . . . . . . Spaces Dug 280 | . . 5 5 . . . 20 18 27 3 1 11 15 11 6 . 18 . . 4 37 7 76 . 10 4 2 Terrain Destroyed 1519 | . . 13 53 66 . 11 109 88 209 56 1 34 28 41 34 7 18 6 28 21 466 9 124 . 43 49 5 Melee 110 | . . . . . . . . . . . 1 . 15 . 6 . . . . . 10 1 65 . 10 1 1 Projectile 294 | . . . 16 2 . . 30 . 51 . . 4 6 2 . 1 6 6 . 19 97 1 34 . 7 8 4 AOE 1115 | . . 13 37 64 . 11 79 88 158 56 . 30 7 39 28 6 12 . 28 2 359 7 25 . 26 40 . Actions | -11 -10 -10 -9 -9 -9 -8 -8 -8 -8 -8 -7 -7 -7 -7 -6 -6 -6 -6 -6 -6 -6 -6 -5 -5 -5 -5 -5 --------- Run | Scr Mat Min Mat Min Exi Min Mat Gar Mat Gar Fac Gar Fac Gar Fac Was Fac Ext Cet Arc Hub Gar Fac Was Fac Gar Fac Total 24556 | 65 664 351 1383 481 396 385 700 2315 1514 1268 239 849 937 899 253 419 319 1362 393 542 1361 1286 2326 442 1685 1261 461 Wait 2772 | 2 67 19 110 27 . 40 351 144 137 29 1 27 83 . 7 3 2 101 43 40 291 109 513 205 169 156 96 Move 18278 | 46 499 302 1089 428 375 320 259 1875 1126 1076 203 725 601 723 187 338 291 1143 274 406 757 1053 1437 219 1255 953 318 Hop . | . . . . . . . . . . . . . . . . . . . . . . . . . . . . Pick Up 326 | 8 6 3 28 . 6 2 6 14 24 5 5 16 29 23 3 3 4 4 13 2 18 9 40 1 25 26 3 Fast Attach 100 | 7 1 1 6 . 2 . 3 7 1 1 . 1 8 . 2 9 2 3 4 3 3 4 9 5 14 4 . Attach 178 | . 1 3 7 4 3 3 3 5 8 2 3 4 13 8 4 2 . 2 4 3 22 5 26 7 18 14 4 Detach 75 | . . . . 2 3 1 . 2 1 . 1 . . . 4 1 1 . 5 3 11 4 11 . 15 9 1 Swap 422 | . 4 . 21 4 4 . 7 27 46 8 10 14 60 25 5 7 5 15 15 5 48 9 47 3 16 9 8 Drop 270 | . 7 . 28 . 3 . 6 24 14 5 1 9 24 10 4 14 6 6 17 4 16 10 27 . 24 8 3 Fire 1648 | 2 79 23 94 16 . 18 65 109 133 134 12 51 96 36 22 42 8 71 17 76 182 65 91 2 123 61 20 Melee 256 | . . . . . . . . . 4 . 2 . 23 29 15 . . . . . 13 2 125 . 24 11 8 Ram 1 | . . . . . . . . . . . . . . . . . . 1 . . . . . . . . . Kick . | . . . . . . . . . . . . . . . . . . . . . . . . . . . . Crush 1 | . . . . . . . . . . . 1 . . . . . . . . . . . . . . . . Escape Stasis 79 | . . . . . . . . 7 . 8 . 2 . 18 . . . 16 . . . 16 . . 2 10 . Rewire 129 | . . . . . . 1 . 101 . . . . . 27 . . . . . . . . . . . . . Trap 20 | . . . . . . . . . 20 . . . . . . . . . . . . . . . . . . Miscellaneous 1 | . . . . . . . . . . . . . . . . . . . 1 . . . . . . . . Route ------- -11/Scrapyard -10/Materials (discovered 4 exits: *Mat x3 / [*Min]) -10/Mines (discovered 2 exits: *Mat x2) -9/Materials (discovered 5 exits: *Mat x3 / [*Min x2]) -9/Mines (discovered 2 exits: *Mat / *Exi) -9/Exiles -8/Mines -8/Materials -8/Garrison (discovered 3 exits: *Mat x3) -8/Materials (discovered 4 exits: *Fac x2 / [*Sto] / Gar) -8/Garrison (discovered 3 exits: *Fac x3) -7/Factory -7/Garrison (discovered 2 exits: *Fac x2) -7/Factory (discovered 2 exits: *Fac / Gar) -7/Garrison (discovered 3 exits: *Fac x3) -6/Factory -6/Waste -6/Factory (discovered 2 exits: [*Low] / *Ext) -6/Extension (discovered 2 exits: *Fac / *Cet) -6/Cetus (discovered 2 exits: *Fac / *Arc) -6/Archives (discovered 3 exits: *Fac / *Hub x2) -6/Hub_04(d) (discovered 4 exits: *Fac x3 / Gar) -6/Garrison (discovered 3 exits: *Fac x3) -5/Factory (discovered 2 exits: [*Fac] / *Upp) -5/Waste -5/Factory (discovered 2 exits: *Upp / Gar) -5/Garrison (discovered 3 exits: *Fac x3) -5/Factory History --------- Turn | Location | Event 29 | -11/Scrapyard | Discovered new exit (range 15) 69 | -11/Scrapyard | Entered Materials 250 | -10/Materials | Discovered new exit (range 15) 316 | -10/Materials | Build established: Mutant 469 | -10/Materials | Discovered new exit (range 10) 759 | -10/Materials | Discovered new exit (range 4) 953 | -10/Materials | Discovered new exit (range 6) 1091 | -10/Materials | Entered Mines 1102 | -10/Mines | Met a Derelict bent on vengeance 1182 | -10/Mines | Lost 4 parts (1n3w) 1238 | -10/Mines | Discovered new exit (range 12) 1273 | -10/Mines | Met a Derelict testing a Signal Generator 1416 | -10/Mines | Assisted by bots powering up and referring to "LRC-V3" 1423 | -10/Mines | Discovered new exit (range 15) 1656 | -10/Mines | Entered Materials 1656 | -9/Materials | Accompanied by 3 allies 1656 | -9/Materials | Evolved 2 slots: Utility x1, Weapon x1 1964 | -9/Materials | Discovered new exit (range 5) 2467 | -9/Materials | System corruption reached 10% 2468 | -9/Materials | Discovered new exit (range 4) 2593 | -9/Materials | Build established: Gunner 3044 | -9/Materials | Discovered new exit (range 15) 3554 | -9/Materials | Discovered new exit (range 11) 3656 | -9/Materials | First assault squad dispatched 3689 | -9/Materials | Repaired Adv. Beam Cannon 3815 | -9/Materials | Lost 3 parts (2n1w) 3946 | -9/Materials | Discovered new exit (range 16) 3976 | -9/Materials | Entered Mines 3985 | -9/Mines | Assembled infested the area 4035 | -9/Mines | Destroyed 11 combat bots 4173 | -9/Mines | Discovered new exit (range 11) 4597 | -9/Mines | Deemed a non-threat by the Exiles lab entrance 4815 | -9/Mines | Discovered new exit (range 5) 4822 | -9/Mines | Entered Exiles 4867 | -9/Exiles | Met 8R-AWN 4895 | -9/Exiles | Met EX-HEX 5024 | -9/Exiles | Met EX-DEC 5231 | -9/Exiles | Met EX-BIN 5256 | -9/Exiles | Aligned with FarCom system 5258 | -9/Exiles | Given EX-Vault access code 5277 | -9/Exiles | Build established: Hauler-Mutant 5301 | -9/Exiles | Opened EX-Vault 5315 | -9/Exiles | Found Superbattery 5320 | -9/Exiles | Found Supersonic Drone Bay 5325 | -9/Exiles | Found AWS/Thermal 5364 | -9/Exiles | Warned to stay clear of 0b10 Research branches 5483 | -9/Exiles | Discovered new exit (range 14) 5505 | -9/Exiles | Stole three prototypes: AWS/Thermal, Superbattery, Supersonic Drone Bay 5505 | -9/Exiles | Entered Mines 6076 | -8/Mines | Discovered new exit (range 12) 6168 | -8/Mines | Entered Materials 6168 | -8/Materials | Evolved 2 slots: Utility x2 6335 | -8/Materials | Repaired Imp. Treads? 7125 | -8/Materials | Garrison activated, responded to threat 7167 | -8/Materials | Destroyed 11 combat bots 7177 | -8/Materials | Identified exit to Garrison 7177 | -8/Materials | Entered Garrison 7241 | -8/Garrison | Triggered checkpoint 7268 | -8/Garrison | Triggered checkpoint 7690 | -8/Garrison | Triggered checkpoint 7723 | -8/Garrison | Triggered checkpoint 7760 | -8/Garrison | Triggered checkpoint 7839 | -8/Garrison | Discovered new exit (range 11) 8096 | -8/Garrison | Triggered checkpoint 8147 | -8/Garrison | Spotted B-75 Beast 8147 | -8/Garrison | Spotted B-75 Beast 8196 | -8/Garrison | Triggered checkpoint 8262 | -8/Garrison | Triggered checkpoint 8534 | -8/Garrison | Discovered new exit (range 10) 8682 | -8/Garrison | Discovered new exit (range 12) 8715 | -8/Garrison | Installed Relay Interface Framework 8760 | -8/Garrison | Triggered checkpoint 9461 | -8/Garrison | Triggered checkpoint 9902 | -8/Garrison | Triggered checkpoint 10237 | -8/Garrison | Garrison Relay disabled 10319 | -8/Garrison | Garrison Relay disabled 10483 | -8/Garrison | Garrison Relay disabled 10697 | -8/Garrison | Garrison Relay disabled 10920 | -8/Garrison | Garrison Relay disabled 11007 | -8/Garrison | Garrison Relay disabled 11148 | -8/Garrison | Entered Materials 11384 | -8/Materials | Repaired Hvy. Particle Cannon 11452 | -8/Materials | Repaired Imp. Treads 11548 | -8/Materials | First assault squad dispatched 11638 | -8/Materials | Destroyed 7 combat bots 12205 | -8/Materials | Discovered new exit (range 14) 12371 | -8/Materials | Discovered new exit (range 13) 12798 | -8/Materials | Discovered new exit (range 16) 13100 | -8/Materials | Build established: Hauler-Skirmisher 13603 | -8/Materials | Core integrity fell below 50% 13626 | -8/Materials | Lost 3 parts (1p2w) 13987 | -8/Materials | Identified exit to Garrison 13987 | -8/Materials | Entered Garrison 14087 | -8/Garrison | Triggered checkpoint 14206 | -8/Garrison | Discovered new exit (range 15) 14362 | -8/Garrison | Triggered checkpoint 14430 | -8/Garrison | Discovered new exit (range 11) 14469 | -8/Garrison | Expanded RIF knowledge: Coupler Efficiency 14520 | -8/Garrison | Triggered checkpoint 14540 | -8/Garrison | Garrison Relay disabled 14646 | -8/Garrison | Build established: Hauler-Mutant 14728 | -8/Garrison | Triggered checkpoint 14877 | -8/Garrison | Discovered new exit (range 15) 14963 | -8/Garrison | Garrison Relay disabled 15611 | -8/Garrison | Triggered checkpoint 15713 | -8/Garrison | Garrison Relay disabled 16145 | -8/Garrison | Triggered checkpoint 16283 | -8/Garrison | Garrison Relay disabled 16390 | -8/Garrison | Triggered checkpoint 16536 | -8/Garrison | Entered Factory 16536 | -7/Factory | Evolved 2 slots: Utility x2 16538 | -7/Factory | FarCom data flow suspended 17041 | -7/Factory | Identified exit to Garrison 17041 | -7/Factory | Entered Garrison 17266 | -7/Garrison | Triggered checkpoint 17303 | -7/Garrison | Garrison Relay disabled 17396 | -7/Garrison | Triggered checkpoint 17613 | -7/Garrison | Discovered new exit (range 14) 17716 | -7/Garrison | Triggered checkpoint 17867 | -7/Garrison | Discovered new exit (range 13) 17891 | -7/Garrison | Identified exit to Factory 17905 | -7/Garrison | Expanded RIF knowledge: Structural Interface 18010 | -7/Garrison | Build established: Hauler-Tank 18066 | -7/Garrison | Triggered checkpoint 18122 | -7/Garrison | Lost 4 parts (1p1u2w) 18159 | -7/Garrison | Garrison Relay disabled 18379 | -7/Garrison | Build established: Hauler-Mutant 18422 | -7/Garrison | Garrison Relay disabled 18891 | -7/Garrison | Entered Factory 19109 | -7/Factory | Repaired Arm. Treads? 19172 | -7/Factory | Repaired Lgt. Treads 19299 | -7/Factory | Build established: Hauler-Skirmisher 19822 | -7/Factory | Build established: Hauler-Mutant 20586 | -7/Factory | Lost 3 parts (1p2w) 20791 | -7/Factory | Discovered new exit (range 9) 20794 | -7/Factory | Identified exit to Garrison 20794 | -7/Factory | Entered Garrison 20805 | -7/Garrison | Expanded RIF knowledge: Autooverride 20943 | -7/Garrison | Triggered checkpoint 21013 | -7/Garrison | Build established: Hauler-Gunner 21026 | -7/Garrison | Triggered checkpoint 21120 | -7/Garrison | Spotted B-75 Beast 21158 | -7/Garrison | Core integrity fell below 50% 21168 | -7/Garrison | Destroyed B-75 Beast 21174 | -7/Garrison | Discovered new exit (range 13) 21188 | -7/Garrison | Triggered checkpoint 21194 | -7/Garrison | Lost 7 parts (2n5w) 21411 | -7/Garrison | Garrison Relay disabled 21427 | -7/Garrison | Build established: Hauler-Mutant 21774 | -7/Garrison | Triggered checkpoint 21851 | -7/Garrison | Discovered new exit (range 15) 21866 | -7/Garrison | Triggered checkpoint 21912 | -7/Garrison | Garrison Relay disabled 22111 | -7/Garrison | Garrison Relay disabled 22189 | -7/Garrison | Discovered new exit (range 15) 22689 | -7/Garrison | Entered Factory 22689 | -6/Factory | Evolved 2 slots: Utility x2 22752 | -6/Factory | Found Unknown Protection 22752 | -6/Factory | Identified Hvy. Insulated Plating 23087 | -6/Factory | Sucked down chute 23087 | -6/Factory | Entered Waste 23087 | -6/Waste | Met up with 1 ally sucked down the chute earlier 23088 | -6/Waste | Met a frightened Derelict 23129 | -6/Waste | Spotted C-40 Crusher 23173 | -6/Waste | Destroyed C-40 Crusher 23176 | -6/Waste | Spotted C-40 Crusher 23176 | -6/Waste | Spotted C-40 Crusher 23238 | -6/Waste | Destroyed C-40 Crusher 23255 | -6/Waste | Found Damper Plating 23294 | -6/Waste | Warlord forces began an assault 23446 | -6/Waste | Allies destroyed C-40 Crusher 23476 | -6/Waste | Spotted C-40 Crusher 23484 | -6/Waste | Allies destroyed C-40 Crusher 23504 | -6/Waste | Spotted C-40 Crusher 23512 | -6/Waste | Allies destroyed C-40 Crusher 23737 | -6/Waste | Discovered new exit (range 12) 23760 | -6/Waste | Entered Factory 23760 | -6/Factory | Accompanied by 10 allies 24187 | -6/Factory | Discovered new exit (range 7) 24214 | -6/Factory | Discovered new exit (range 16) 24262 | -6/Factory | Entered Extension 24262 | -6/Extension | Accompanied by 9 allies 24708 | -6/Extension | Spotted B-75 Beast 24725 | -6/Extension | Allies destroyed B-75 Beast 24726 | -6/Extension | Spotted B-75 Beast 24729 | -6/Extension | Allies destroyed B-75 Beast 25712 | -6/Extension | Disrupted transfer network 25913 | -6/Extension | Rescued a captive Derelict 25915 | -6/Extension | Rescued a captive Derelict 26023 | -6/Extension | Rescued A7 26248 | -6/Extension | Rescued a captive Derelict 26291 | -6/Extension | Rescued a captive Derelict 26292 | -6/Extension | Rescued a captive Derelict 26381 | -6/Extension | Discovered new exit (range 10) 26383 | -6/Extension | Discovered new exit (range 6) 26405 | -6/Extension | Entered Cetus 26405 | -6/Cetus | Accompanied by 6 allies 26410 | -6/Cetus | Acquired a Cetus Manufacturing Module code from A7 26436 | -6/Cetus | Spotted Cetus Guard 26436 | -6/Cetus | Spotted Cetus Guard 26442 | -6/Cetus | Destroyed Cetus Guard 26442 | -6/Cetus | Spotted Cetus Guard 26442 | -6/Cetus | Spotted Cetus Guard 26450 | -6/Cetus | Destroyed Cetus Guard 26451 | -6/Cetus | Allies destroyed Cetus Guard 26454 | -6/Cetus | Allies destroyed Cetus Guard 26614 | -6/Cetus | Started Cetus Manufacturing Module 26634 | -6/Cetus | Escorted A7 to Cetus Mainframe 26639 | -6/Cetus | Manufactured an Enhanced Grunt 26664 | -6/Cetus | Manufactured an Enhanced Grunt 26689 | -6/Cetus | Manufactured an Enhanced Grunt 26714 | -6/Cetus | Manufactured an Enhanced Grunt 26739 | -6/Cetus | Manufactured an Enhanced Grunt 26777 | -6/Cetus | Discovered new exit (range 15) 26870 | -6/Cetus | Spotted Cetus Guard 26870 | -6/Cetus | Spotted Cetus Guard 26873 | -6/Cetus | Spotted Cetus Guard 26873 | -6/Cetus | Spotted Cetus Guard 26879 | -6/Cetus | Allies destroyed Cetus Guard 26882 | -6/Cetus | Destroyed Cetus Guard 26885 | -6/Cetus | Destroyed Cetus Guard 26888 | -6/Cetus | Destroyed Cetus Guard 26898 | -6/Cetus | Discovered new exit (range 16) 26909 | -6/Cetus | Met Revision 17 26985 | -6/Cetus | Entered Archives 26985 | -6/Archives | Accompanied by 4 allies 26990 | -6/Archives | Received a hacking code to weaken MAIN.C 27136 | -6/Archives | Discovered new exit (range 16) 27219 | -6/Archives | Found Prototype Device 27219 | -6/Archives | Identified Exp. Thermal Shield 27335 | -6/Archives | Discovered new exit (range 15) 27484 | -6/Archives | Unable to access archive contents 27546 | -6/Archives | Discovered new exit (range 16) 28004 | -6/Archives | Entered Hub_04(d) 28004 | -6/Hub_04(d) | Accompanied by 4 allies 28204 | -6/Hub_04(d) | Discovered new exit (range 5) 28491 | -6/Hub_04(d) | Discovered new exit (range 13) 29192 | -6/Hub_04(d) | Discovered new exit (range 6) 29269 | -6/Hub_04(d) | Identified exit to Garrison 29527 | -6/Hub_04(d) | Network Hub disabled 29527 | -6/Hub_04(d) | Network Hub disabled 29601 | -6/Hub_04(d) | Spotted Lightning 29603 | -6/Hub_04(d) | Spotted Lightning 29607 | -6/Hub_04(d) | Spotted Lightning 29631 | -6/Hub_04(d) | Destroyed Lightning 29649 | -6/Hub_04(d) | Destroyed Lightning 29670 | -6/Hub_04(d) | Destroyed Lightning 29696 | -6/Hub_04(d) | Found EM Dispersion Field 29712 | -6/Hub_04(d) | Spotted Lightning 29758 | -6/Hub_04(d) | Destroyed Lightning 29759 | -6/Hub_04(d) | Spotted Lightning 29760 | -6/Hub_04(d) | Spotted Lightning 29804 | -6/Hub_04(d) | First assault squad dispatched 29806 | -6/Hub_04(d) | Destroyed Lightning 29954 | -6/Hub_04(d) | Found EMDS 30032 | -6/Hub_04(d) | Destroyed Lightning 30055 | -6/Hub_04(d) | Found EMDS 30100 | -6/Hub_04(d) | Found Exp. Targeting Computer 30166 | -6/Hub_04(d) | Spotted Lightning 30169 | -6/Hub_04(d) | Spotted Lightning 30176 | -6/Hub_04(d) | Spotted Lightning 30176 | -6/Hub_04(d) | Garrison activated, responded to threat 30230 | -6/Hub_04(d) | Destroyed Lightning 30248 | -6/Hub_04(d) | Lost 5 parts (1p3u1w) 30250 | -6/Hub_04(d) | Destroyed Lightning 30253 | -6/Hub_04(d) | Destroyed Lightning 30268 | -6/Hub_04(d) | Found EMDS 30274 | -6/Hub_04(d) | Destroyed 13 combat bots 30284 | -6/Hub_04(d) | Found EM Dispersion Field 30360 | -6/Hub_04(d) | Found EM Dispersion Field 30471 | -6/Hub_04(d) | Core integrity fell below 50% 30474 | -6/Hub_04(d) | Entered Garrison 30567 | -6/Garrison | Triggered checkpoint 30621 | -6/Garrison | Triggered checkpoint 30629 | -6/Garrison | Triggered checkpoint 30669 | -6/Garrison | Destroyed 7 combat bots 30766 | -6/Garrison | Build established: Scavenger-Mutant 30779 | -6/Garrison | Discovered new exit (range 14) 31060 | -6/Garrison | Triggered checkpoint 31107 | -6/Garrison | Triggered checkpoint 31160 | -6/Garrison | Garrison Relay disabled 31291 | -6/Garrison | Discovered new exit (range 8) 31319 | -6/Garrison | Expanded RIF knowledge: Coupler Efficiency 31377 | -6/Garrison | Build established: Hauler-Mutant 31426 | -6/Garrison | Triggered checkpoint 31526 | -6/Garrison | Garrison Relay disabled 31844 | -6/Garrison | Build established: Bothacker-Mutant 32069 | -6/Garrison | Triggered checkpoint 32160 | -6/Garrison | Garrison Relay disabled 32223 | -6/Garrison | Discovered new exit (range 14) 32326 | -6/Garrison | Triggered checkpoint 32866 | -6/Garrison | Entered Factory 32866 | -5/Factory | Evolved 2 slots: Utility x2 34437 | -5/Factory | Repaired Centrium Medium Armor Plating 34546 | -5/Factory | Repaired Centrium Medium Armor Plating? 34709 | -5/Factory | Repaired Med. Reactive Plating 34804 | -5/Factory | Spotted B-75 Beast 35176 | -5/Factory | Discovered new exit (range 8) 35359 | -5/Factory | Discovered new exit (range 9) 35512 | -5/Factory | Fabricated Centrium Wheel? 35538 | -5/Factory | Fabricated Centrium Wheel? 36395 | -5/Factory | Fabricated Centrium Wheel? 36535 | -5/Factory | Identified exit to Upper Caves 36627 | -5/Factory | Garrison activated, responded to threat 36642 | -5/Factory | Build established: Hauler-Mutant 36700 | -5/Factory | Lost 6 parts (1p1u4w) 36766 | -5/Factory | First assault squad dispatched 36800 | -5/Factory | Sucked down chute 36800 | -5/Factory | Entered Waste 36815 | -5/Waste | EMP discharged 36829 | -5/Waste | Spotted C-40 Crusher 36860 | -5/Waste | Spotted C-40 Crusher 36881 | -5/Waste | Spotted C-40 Crusher 36886 | -5/Waste | Spotted C-40 Crusher 36894 | -5/Waste | Crushed by Compactor (1 part destroyed, 1 dropped) 36897 | -5/Waste | Crushed by Compactor (1 part destroyed, 2 dropped) 36900 | -5/Waste | Crushed by Compactor (1 part destroyed, 2 dropped) 36900 | -5/Waste | Crushed by Compactor (1 part destroyed, 1 dropped) 36903 | -5/Waste | Crushed by Compactor (0 parts destroyed, 1 dropped) 36906 | -5/Waste | Crushed by Compactor (0 parts destroyed, 1 dropped) 36909 | -5/Waste | Crushed by Compactor (0 parts destroyed, 1 dropped) 36910 | -5/Waste | Spotted C-40 Crusher 36912 | -5/Waste | Crushed by Compactor (1 part destroyed) 36913 | -5/Waste | Core integrity fell below 50% 36913 | -5/Waste | Spotted C-40 Crusher 36914 | -5/Waste | Destroyed C-40 Crusher 36915 | -5/Waste | EMP discharged 36921 | -5/Waste | Destroyed C-40 Crusher 36931 | -5/Waste | Destroyed C-40 Crusher 36938 | -5/Waste | Destroyed C-40 Crusher 36943 | -5/Waste | Lost 7 parts (1n4u2w) 36950 | -5/Waste | Destroyed C-40 Crusher 36955 | -5/Waste | Destroyed C-40 Crusher 36966 | -5/Waste | Found Unknown Protection 36966 | -5/Waste | Identified Damper Plating 37015 | -5/Waste | EMP discharged 37103 | -5/Waste | Discovered new exit (range 13) 37115 | -5/Waste | EMP discharged 37193 | -5/Waste | Identified exit to Factory 37215 | -5/Waste | EMP discharged 37282 | -5/Waste | Build established: Scavenger-Tank 37315 | -5/Waste | EMP discharged 37400 | -5/Waste | Entered Factory 37895 | -5/Factory | Spotted B-75 Beast 38242 | -5/Factory | Build established: Scavenger-Mutant 38427 | -5/Factory | Fabricated Exp. Targeting Computer (x1) 38529 | -5/Factory | Fabricated Centrium Heavy Treads? 38757 | -5/Factory | Repaired Hardcell Cannon? 39353 | -5/Factory | Repaired Centrium Heavy Treads 39489 | -5/Factory | Garrison activated, responded to threat 39944 | -5/Factory | Discovered exit to Upper Caves (range 5) 40100 | -5/Factory | First assault squad dispatched 40198 | -5/Factory | Core integrity fell below 20% 40242 | -5/Factory | Lost 3 parts (3u) 40259 | -5/Factory | Identified exit to Garrison 40259 | -5/Factory | Entered Garrison 40451 | -5/Garrison | Triggered checkpoint 40484 | -5/Garrison | Triggered checkpoint 40503 | -5/Garrison | Triggered checkpoint 40512 | -5/Garrison | Triggered checkpoint 40543 | -5/Garrison | Destroyed 11 combat bots 40683 | -5/Garrison | Discovered new exit (range 10) 40736 | -5/Garrison | Build established: Hauler-Mutant 40988 | -5/Garrison | Discovered new exit (range 5) 41072 | -5/Garrison | Spotted B-75 Beast 41261 | -5/Garrison | Discovered new exit (range 15) 41284 | -5/Garrison | Identified exit to Factory 41295 | -5/Garrison | Expanded RIF knowledge: Autooverride 41498 | -5/Garrison | Triggered checkpoint 41506 | -5/Garrison | Build established: Scavenger-Mutant 41721 | -5/Garrison | Garrison Relay disabled 42222 | -5/Garrison | Garrison Relay disabled 42230 | -5/Garrison | Triggered checkpoint 42343 | -5/Garrison | Entered Factory 42526 | -5/Factory | Build established: Botlord-Mutant 43098 | -5/Factory | Destroyed by H-66 Slayer with Gauss Rifle Last Messages --------------- 43079_ YXL5>G9,,J|S0 7>RO,FSJNYSEA:VD 43080_ B-60 Warrior suffers critical hit. 43080_ B-60 Warrior destroyed. 43081_ Acquired 77 matter. 43082_ G-50 Soldier suffers critical hit. 43082_ Destroyed Hvy. Laser. 43085_ Acquired 80 matter. 43092_ ALERT: Hostiles spotted, dispatching reinforcements to Terminal F012. 43092_ Acquired Imp. Medium Armor Plating. 43095_ C-30 ARC bursts open, deploying its payload. 43095_ H-66 Slayer unfolds itself. 43095_ Penetrated by Slug. 43095_ Dropped KE Penetrator. 43097_ Acquired 1 matter. 43097_ EMDS Slug penetrates H-66 Slayer. 43097_ Lgt. Deuterium Engine fried. 43097_ Imp. Hover Unit fried. 43097_ W-25 Informer destroyed. 43098_ Penetrated by Slug. Map ----- +----------------------------------------------------+ | ???????????? ??????????????????????? | | ???????????? ????????????????????? | | ???????????? ????????????????????? | | ???????????? ???????????????????? | | ???????????? ???????????????????? | | ???????????? ? #????????????????? | | ???????????? #????????????????? | | ???????????? #????????????????? | | ???????????? ##+??????????????? | | ???????????? ??????????????? | | ???????????# ???????????????? | | ???????o???# ""G"" #?????????????? | | ???????????# ^ " " ##????????????? | | ???????????# ###??????????? | | ???????????# ^ ???????????? | | ???????????# """ #????????????? | | ???????????# """ #????????????? | | ???????????#^ """ #????????????? | | ???????????# #????????????? | | ???????????#% ? #????????????? | | ???????????# ??? ] #????????????? | | ???????????# ????? #????????????? | | ???????????#%#?????? #????????????? | | ???#+#???###h#?????? #????????????? | | ???# #####;#/####### #????????????? | | ???# ## ! @= # [ #????????????? | | ???# ## [ !#=%[#????????????? | | ???# ##! """"""" # #????????????? | | ???# ## """"""" # #????????????? | | ???# ## """"""" # #????????????? | | ???# ## """"""" # #????????????? | | ???# ## # #????????????? | | ???# ## ! # #????????????? | | ??## ## !! [ # #????????????? | | ??# # !! # #????????????? | | ??# T # ! / #????????????? | | ??# # # #????????????? | | ??## ###########/### ##???????????? | | ???# #?????????# ## ##### #?? | | ???# "########## ## #?? | | ???# = Y | | ???## # !### | | ????# # ##### #?? | | ????# #######?????#####?? | | ????# #????????########## | | ????# #????????# | | ????# #???###### | | ????# ######## ## | | ????### # # | | ???#### # """ # ##/######^ | +----------------------------------------------------+ Best States ------------- Heat Dissipation 64 Energy Generation 25 Energy Capacity 2315 Matter Stores 500 Matter Capacity 550 Sight Range 23 Robot Scan Range 16 Terrain Scan Density 10 Armor Coverage 2850 Resistance: KI 30 Resistance: TH 30 Resistance: EM 90 Utility Shielding 90 Weapon Shielding 66 Weapon Cycling 30 Evasion (%) 42 Targeting Accuracy 12 Armor Integrity Analysis 33 Recoil Reduction 2 Particle Charging 15 Offensive Hacking 12 Item Schematics ----------------- Centrium Wheel | -6/Hub_04(d) | Hacked Centrium Heavy Treads | -5/Factory | Scanalyzed Exp. Targeting Computer | -5/Factory | Scanalyzed Robot Schematics ------------------ None Fabricated ------------ Centrium Wheel | x2 | -5/Factory Centrium Wheel | x2 | -5/Factory Centrium Wheel | x2 | -5/Factory Exp. Targeting Computer | x1 | -5/Factory Centrium Heavy Treads | x1 | -5/Factory Alien Tech Used ----------------- None Achievements -------------- None Challenges ------------ None Game ------ Seed RegenerativeScanUnit Manual? 0 Play Time 07:11:09 Cumulative 813.5 hours Start 2019.10.29 @ 00:53:16 End 2019.11.02 @ 18:43:51 Sessions 9 Manual Loads 0 Difficulty Rogue Special Mode None Game No. 300 Rogue 300 Adventurer 0 Explorer 0 Win Type - Total 20 Types 10/1/7/0/0/0/2 Lore% 95 Gallery% 94 Achievement% 79 Wizard Run 0 Options --------- ASCII 0 Keyboard 0 Movement Vi Keybinds 0 Fullscreen 0 Font 12/Crisp Map View 76x50 Tactical HUD 1 Map Filters NONE Filters NONE Steam 1 RUN: 9bff18b8-5336-414f-b62c-d1b63c0c3f86